bitfinex/quotes_SOLUSD_20250904
["timestamp","ask_amount","ask_price","bid_price","bid_amount"]
[1757009479949,1e-08,204.6,204.59,22.13942247]
[1757009480159,1e-08,204.6,204.59,26.66652247]
[1757009480332,1e-08,204.6,204.59,23.01051843]
[1757009481651,1e-08,204.6,204.59,4.5271]
[1757009481855,0.68000001,204.6,204.59,13.59559401]
[1757009483551,0.68000001,204.6,204.58,4.5271]
[1757009483552,0.68000001,204.6,204.58,13.59559401]
[1757009483938,0.68,204.59,204.57,13.59559401]
[1757009484160,0.68,204.59,204.57,18.12269401]
[1757009484349,0.68,204.59,204.57,23.01095769]
[1757009485265,1e-08,204.6,204.57,23.01095769]
[1757009485564,0.68000001,204.6,204.58,4.5271]
[1757009487264,0.68000001,204.6,204.58,9.41508165]
[1757009488065,5.2071,204.59,204.55,0.03]
[1757009489049,4.5271,204.58,204.55,0.03]
[1757009489242,4.5271,204.57,204.55,0.03]
[1757009489562,4.5271,204.56,204.55,0.03]
[1757009490067,5.2071,204.56,204.55,0.03]
[1757009492444,10.09564125,204.56,204.55,0.03]
[1757009498740,10.09564125,204.56,204.54,0.03]
[1757009498945,4.5271,204.55,204.54,0.03]
[1757009499351,5.2071,204.55,204.54,0.03]
[1757009499863,10.09588024,204.55,204.54,0.03]
[1757009501052,48.15588024,204.55,204.54,0.03]
[1757009501370,10.09588024,204.55,204.54,0.03]
[1757009501560,48.15588024,204.55,204.54,0.03]
[1757009501975,10.09588024,204.55,204.54,0.03]
[1757009502167,48.15588024,204.55,204.54,0.03]
[1757009502472,69.2671,204.55,204.54,0.03]
[1757009502872,74.15588024,204.55,204.54,0.03]
[1757009504064,31.2071,204.55,204.54,0.03]
[1757009504266,64.74,204.55,204.54,0.03]
[1757009504480,69.2671,204.55,204.54,0.03]
[1757009505472,31.2071,204.55,204.54,0.03]
[1757009505674,69.2671,204.55,204.54,0.03]
[1757009506576,5.2071,204.55,204.54,0.03]
[1757009506776,43.2671,204.55,204.54,0.03]
[1757009508464,48.15588024,204.55,204.54,0.03]
[1757009509967,30.5271,204.55,204.54,0.03]
[1757009510168,68.5471,204.55,204.54,0.03]
[1757009510383,30.5271,204.55,204.54,0.03]
[1757009510579,68.5471,204.55,204.54,0.03]
[1757009511064,38.02,204.55,204.54,0.03]
[1757009511882,37.76201824,204.55,204.54,0.03]
[1757009512877,38.0,204.55,204.54,0.03]
[1757009513269,2.896211,204.57,204.54,0.03]
[1757009513464,38.02,204.56,204.54,0.03]
[1757009513887,38.02,204.55,204.54,0.03]
[1757009514390,1e-08,204.6,204.54,16.52180501]
[1757009514574,38.02,204.59,204.55,2.896211]
[1757009515295,38.68,204.59,204.55,2.896211]
[1757009516374,1e-08,204.6,204.56,2.896211]
[1757009516578,38.02,204.59,204.56,2.896211]
[1757009516999,38.02,204.59,204.57,2.896211]
[1757009518292,38.02,204.59,204.56,21.38020398]
[1757009520878,1e-08,204.6,204.58,2.896211]
[1757009521091,1e-08,204.6,204.59,16.49180501]
[1757009521795,1e-08,204.6,204.59,13.59559401]
[1757009522384,1e-08,204.6,204.59,16.49180501]
[1757009522802,1e-08,204.6,204.59,21.37962943]
[1757009525582,1e-08,204.6,204.59,25.02762682]
[1757009525785,1e-08,204.6,204.59,25.51640926]
[1757009526394,1e-08,204.6,204.59,27.47541702]
[1757009527599,1e-08,204.62,204.61,39.59559401]
[1757009527797,1e-08,204.63,204.62,13.59559401]
[1757009527997,1e-08,204.63,204.62,20.1398024]
[1757009529109,1e-08,204.63,204.62,25.0269102]
[1757009529692,0.06,204.64,204.62,25.0269102]
[1757009529895,1e-08,204.64,204.63,46.62848929]
[1757009530098,1e-08,204.65,204.64,13.59559401]
[1757009530297,1e-08,204.65,204.64,20.1398024]
[1757009530910,1e-08,204.65,204.64,17.2435914]
[1757009531109,1e-08,204.65,204.64,20.1398024]
[1757009531402,1e-08,204.65,204.64,25.02643257]
[1757009531596,0.06,204.71,204.64,37.24300801]
[1757009531802,0.06,204.71,204.67,42.49180501]
[1757009532006,0.06,204.71,204.67,43.2435914]
[1757009532201,0.06,204.71,204.67,46.1398024]
[1757009532718,0.06,204.71,204.67,51.09810756]
[1757009533010,0.06,204.71,204.67,53.05615637]
[1757009533606,0.06,204.71,204.67,57.94207028]
[1757009533911,0.06,204.71,204.68,13.59559401]
[1757009534095,0.06,204.71,204.7,54.07664901]
[1757009534408,0.06,204.71,204.7,95.7046464]
[1757009534618,0.06,204.71,204.7,57.7246464]
[1757009534788,0.06,204.71,204.7,92.05664901]
[1757009534993,0.06,204.71,204.7,92.54516879]
[1757009535587,0.06,204.71,204.7,97.43036664]
[1757009535806,0.06,204.71,204.7,98.89960816]
[1757009539198,0.06,204.71,204.7,98.85960816]
[1757009540296,0.06,204.71,204.7,60.91960816]
[1757009540498,0.06,204.71,204.7,99.34812794]
[1757009540706,0.06,204.71,204.7,98.85960816]
[1757009540917,0.06,204.71,204.7,98.83960816]
[1757009541606,0.06,204.71,204.7,60.91960816]
[1757009541800,0.06,204.71,204.7,87.25476416]
[1757009542512,0.06,204.71,204.7,49.36476416]
[1757009542705,0.74,204.71,204.7,49.36476416]
[1757009542909,0.74,204.71,204.7,87.28476416]
[1757009545118,0.06,204.72,204.7,98.86960816]
[1757009545427,0.06,204.72,204.71,16.98030093]
[1757009547122,1e-08,204.72,204.71,21.86526014]
[1757009547421,1e-08,204.72,204.71,105.47744602]
[1757009547723,1e-08,204.72,204.71,104.9889501]
[1757009548731,1e-08,204.72,204.71,104.98871945]
[1757009550920,0.06,204.74,204.71,104.98871945]
[1757009551112,0.06,204.74,204.73,42.49180501]
[1757009551423,0.06,204.76,204.73,46.10376024]
[1757009551600,0.2,204.81,204.76,39.59559401]
[1757009551807,0.2,204.81,204.78,28.07664901]
[1757009552023,0.2,204.81,204.78,28.56497794]
[1757009552323,0.2,204.81,204.78,30.52197298]
[1757009552626,0.2,204.81,204.79,13.59559401]
[1757009552809,0.2,204.81,204.79,66.07664901]
[1757009553207,0.2,204.81,204.79,70.95969994]
[1757009554212,0.2,204.81,204.79,32.95969994]
[1757009554528,0.2,204.81,204.79,70.93969994]
[1757009555629,0.2,204.81,204.79,72.89659923]
[1757009556235,0.88,204.8,204.79,20.43554423]
[1757009556432,0.88,204.8,204.79,21.37485594]
[1757009556827,0.2,204.8,204.79,21.37485594]
[1757009557014,0.88,204.8,204.79,21.37485594]
[1757009558229,0.88,204.8,204.79,29.15203033]
[1757009560021,0.88,204.8,204.79,29.18203033]
[1757009560529,0.2,204.8,204.79,26.28581933]
[1757009560833,0.88,204.8,204.79,67.14203033]
[1757009561327,0.88,204.8,204.79,64.24581933]
[1757009561520,0.88,204.8,204.79,67.14203033]
[1757009562930,0.88,204.8,204.79,29.18203033]
[1757009563236,0.88,204.8,204.79,67.12203033]
[1757009563755,0.88,204.8,204.79,64.22581933]
[1757009564110,0.88,204.8,204.79,13.62559401]
[1757009564313,0.88,204.8,204.79,0.03]
[1757009567012,3.776211,204.8,204.79,0.03]
[1757009567212,0.88,204.8,204.79,0.03]
[1757009567437,3.776211,204.8,204.79,0.03]
[1757009568156,8.6590235,204.8,204.79,0.03]
[1757009568654,3.776211,204.8,204.79,0.03]
[1757009568830,0.88,204.8,204.79,0.03]
[1757009569034,3.776211,204.8,204.79,0.03]
[1757009571247,8.6590235,204.8,204.79,0.03]
[1757009571539,10.27858225,204.8,204.79,0.03]
[1757009571752,5.7628125,204.8,204.79,0.03]
[1757009571922,10.27858225,204.8,204.79,0.03]
[1757009572129,14.794352,204.8,204.79,0.03]
[1757009574434,14.794352,204.8,204.76,0.03]
[1757009574435,27.00138325,204.8,204.76,0.03]
[1757009574624,4.51576975,204.77,204.76,0.03]
[1757009574827,42.43576975,204.77,204.76,0.03]
[1757009575129,43.15576975,204.77,204.76,0.03]
[1757009575530,48.03929761,204.77,204.76,0.03]
[1757009576231,43.52352786,204.77,204.76,0.03]
[1757009576438,48.03929761,204.77,204.76,0.03]
[1757009580051,43.52352786,204.77,204.76,0.03]
[1757009580250,26.0,204.75,204.74,0.03]
[1757009580454,30.51576975,204.75,204.74,0.03]
[1757009580656,31.23576975,204.75,204.74,0.03]
[1757009581238,31.23576975,204.75,204.73,0.03]
[1757009581438,4.51576975,204.74,204.73,0.03]
[1757009581645,42.43576975,204.74,204.73,0.03]
[1757009581936,43.15576975,204.74,204.73,0.03]
[1757009582265,48.02001318,204.74,204.73,0.03]
[1757009582650,10.12001318,204.74,204.73,0.03]
[1757009582852,48.02001318,204.74,204.73,0.03]
[1757009583450,26.0,204.71,204.7,0.03]
[1757009583656,26.0,204.71,204.65,0.03]
[1757009583657,35.0315395,204.71,204.65,0.03]
[1757009583863,4.51576975,204.68,204.65,0.03]
[1757009584065,42.43576975,204.68,204.65,0.03]
[1757009584248,48.04144495,204.68,204.65,0.03]
[1757009586462,10.12144495,204.68,204.65,0.03]
[1757009586674,48.02144495,204.68,204.65,0.03]
[1757009587177,26.0,204.66,204.65,0.03]
[1757009587361,68.43576975,204.66,204.65,0.03]
[1757009587551,69.15576975,204.66,204.65,0.03]
[1757009588569,74.04192239,204.66,204.65,0.03]
[1757009590561,4.51576975,204.59,204.58,0.1]
[1757009590754,42.43576975,204.59,204.58,0.1]
[1757009591370,0.72,204.62,204.58,0.1]
[1757009591674,4.51576975,204.6,204.58,0.1]
[1757009591867,0.72,204.62,204.58,0.1]
[1757009591868,4.51576975,204.59,204.58,0.1]
[1757009595679,42.43576975,204.59,204.58,0.1]
[1757009597182,0.72,204.62,204.58,0.1]
[1757009597369,37.92,204.61,204.58,4.98801644]
[1757009597564,26.72,204.62,204.58,4.98801644]
[1757009597565,0.68,204.64,204.58,4.98801644]
[1757009597770,4.51576975,204.6,204.58,4.98801644]
[1757009598580,26.0,204.66,204.58,4.98801644]
[1757009598767,4.51576975,204.62,204.58,4.98801644]
[1757009598958,4.51576975,204.63,204.59,13.59559401]
[1757009599157,42.43576975,204.63,204.6,4.88758553]
[1757009600763,43.11576975,204.63,204.6,4.88758553]
[1757009600964,5.19576975,204.63,204.6,4.88758553]
[1757009601301,4.51576975,204.62,204.6,4.88758553]
[1757009601982,5.19576975,204.61,204.58,0.1]
[1757009602187,37.92,204.6,204.58,0.1]
[1757009602392,4.51576975,204.59,204.58,0.1]
[1757009603874,42.43576975,204.59,204.58,0.1]
[1757009604073,4.51576975,204.59,204.58,4.98805671]
[1757009604481,4.51576975,204.59,204.58,0.1]
[1757009606778,38.6,204.6,204.58,0.1]
[1757009606981,4.51576975,204.59,204.58,0.1]
[1757009607188,5.19576975,204.59,204.58,0.1]
[1757009607380,4.51576975,204.59,204.58,0.1]
[1757009607688,5.19576975,204.59,204.58,0.1]
[1757009610490,10.08359417,204.59,204.58,0.1]
[1757009610678,5.19576975,204.59,204.58,0.1]
[1757009613688,10.08359417,204.59,204.58,0.1]
[1757009613993,5.19576975,204.59,204.58,0.1]
[1757009616191,10.08359417,204.59,204.58,0.1]
[1757009622809,48.00359417,204.59,204.58,0.1]
[1757009627018,10.08359417,204.59,204.58,0.1]
[1757009627393,48.00359417,204.59,204.58,0.1]
[1757009629420,43.11576975,204.59,204.58,0.1]
[1757009629610,26.68,204.59,204.58,0.1]
[1757009629815,69.11576975,204.59,204.58,0.1]
[1757009630125,0.7,204.61,204.58,0.1]
[1757009630329,4.51576975,204.59,204.58,0.1]
[1757009631429,2.89546841,204.59,204.58,0.1]
[1757009633112,40.81546841,204.59,204.58,0.1]
[1757009635216,46.40329283,204.59,204.58,0.1]
[1757009636745,26.0,204.64,204.58,0.1]
[1757009636936,2.89546841,204.61,204.58,0.1]
[1757009637117,37.92,204.6,204.58,0.1]
[1757009638545,40.81546841,204.6,204.58,0.1]
[1757009639631,40.81546841,204.6,204.57,4.78810372]
[1757009640234,2.89546841,204.59,204.55,23.40226926]
[1757009640427,2.89546841,204.59,204.56,3.65494658]
[1757009640627,2.89546841,204.58,204.55,23.40226926]
[1757009640823,2.89546841,204.58,204.56,3.65497289]
[1757009641035,3.59546841,204.57,204.55,0.03]
[1757009641345,38.62,204.58,204.56,3.65501934]
[1757009641542,0.7,204.57,204.55,0.03]
[1757009641849,38.62,204.58,204.56,3.65523827]
[1757009642028,38.62,204.58,204.55,0.03]
[1757009642227,38.62,204.58,204.56,3.65527636]
[1757009642527,2.89546841,204.57,204.55,0.03]
[1757009642734,2.89546841,204.57,204.56,3.65548873]
[1757009643352,3.59546841,204.57,204.55,0.03]
[1757009643652,45.70400966,204.56,204.55,0.03]
[1757009643842,45.70400966,204.56,204.54,0.03]
[1757009644040,3.59546841,204.55,204.53,0.03]
[1757009644231,0.7,204.55,204.53,0.03]
[1757009644437,40.81546841,204.54,204.53,0.03]
[1757009644855,41.51546841,204.54,204.53,0.03]
[1757009645339,0.7,204.54,204.53,0.03]
[1757009645654,40.81546841,204.54,204.53,0.03]
[1757009645858,2.89546841,204.55,204.53,0.03]
[1757009646248,40.81546841,204.55,204.53,0.03]
[1757009646954,37.92,204.55,204.53,0.03]
[1757009648342,37.92,204.55,204.54,3.65859537]
[1757009649753,37.92,204.55,204.54,8.54761463]
[1757009649950,0.06,204.57,204.54,8.54761463]
[1757009650131,37.92,204.56,204.54,4.88901926]
[1757009650759,37.92,204.56,204.55,3.65910087]
[1757009651365,3.65546841,204.57,204.55,3.65910087]
[1757009651662,37.92,204.56,204.54,4.88901926]
[1757009651857,37.92,204.56,204.55,3.65911428]
[1757009652060,38.62,204.56,204.55,3.65911428]
[1757009652558,41.51546841,204.56,204.55,3.65911428]
[1757009652771,3.59546841,204.56,204.55,3.65911428]
[1757009652941,41.51546841,204.56,204.55,3.65911428]
[1757009653963,3.59546841,204.56,204.55,3.65911428]
[1757009654260,2.89546841,204.56,204.55,3.65911428]
[1757009654446,2.95546841,204.57,204.55,3.65911428]
[1757009654759,2.95546841,204.57,204.56,3.65911428]
[1757009654963,41.57546841,204.57,204.56,3.65911428]
[1757009657552,41.57546841,204.57,204.53,13.62559401]
[1757009657756,0.7,204.56,204.54,3.66383767]
[1757009657959,3.59546841,204.56,204.55,3.66383767]
[1757009658283,3.59546841,204.56,204.55,3.66383844]
[1757009662256,0.7,204.56,204.55,3.66383844]
[1757009666160,38.6,204.56,204.55,3.66383844]
[1757009668579,41.49546841,204.56,204.55,3.66383844]
[1757009668889,41.49546841,204.56,204.54,0.03]
[1757009669075,2.89546841,204.55,204.54,0.03]
[1757009669455,3.59546841,204.55,204.54,0.03]
[1757009670076,8.48424865,204.55,204.54,0.03]
[1757009671078,3.59546841,204.55,204.54,0.03]
[1757009671285,8.48424865,204.55,204.54,0.03]
[1757009675669,46.38424865,204.55,204.54,0.03]
[1757009678090,48.3447927,204.55,204.54,0.03]
[1757009680887,48.4047927,204.55,204.54,0.03]
[1757009681675,10.5047927,204.55,204.54,0.03]
[1757009681874,48.4047927,204.55,204.54,0.03]
[1757009683379,48.4047927,204.55,204.52,0.02551]
[1757009683578,7.7847267,204.53,204.52,0.02551]
[1757009683904,45.6847267,204.53,204.52,0.02551]
[1757009684193,46.3847267,204.53,204.52,0.02551]
[1757009684596,43.48925829,204.53,204.52,0.02551]
[1757009684891,46.3847267,204.53,204.52,0.02551]
[1757009687373,43.48925829,204.53,204.52,0.02551]
[1757009687587,46.3847267,204.53,204.52,0.02551]
[1757009691423,8.4847267,204.53,204.52,0.02551]
[1757009691590,46.3847267,204.53,204.52,0.02551]
[1757009692005,8.4847267,204.53,204.52,0.02551]
[1757009692204,46.3847267,204.53,204.52,0.02551]
[1757009692699,8.4847267,204.53,204.52,0.02551]
[1757009692904,46.3847267,204.53,204.52,0.02551]
[1757009693504,48.01676201,204.53,204.52,0.02551]
[1757009696617,5.22750372,204.53,204.52,0.02551]
[1757009696822,43.12750372,204.53,204.52,0.02551]
[1757009697916,48.01676201,204.53,204.52,0.02551]
[1757009698724,48.07676201,204.53,204.52,0.02551]
[1757009700625,43.16750372,204.53,204.52,0.02551]
[1757009701226,48.05676201,204.53,204.52,0.02551]
[1757009701436,52.58426573,204.53,204.52,0.02551]
[1757009701620,58.35800667,204.53,204.52,0.02551]
[1757009701810,26.0,204.51,204.49,0.03]
[1757009702016,72.93500744,204.51,204.49,0.03]
[1757009702212,73.59500744,204.51,204.49,0.03]
[1757009702413,75.55622438,204.51,204.49,0.03]
[1757009702616,80.44596082,204.51,204.49,0.03]
[1757009703355,77.68237982,204.51,204.49,0.03]
[1757009703645,68.62737238,204.51,204.49,0.03]
[1757009703938,49.2584571,204.51,204.49,0.03]
[1757009704140,37.88,204.51,204.49,0.03]
[1757009704328,4.58750372,204.53,204.49,0.03]
[1757009704639,37.88,204.52,204.49,0.03]
[1757009705420,42.40750372,204.52,204.49,0.03]
[1757009705736,43.06750372,204.52,204.49,0.03]
[1757009706127,42.40750372,204.52,204.49,0.03]
[1757009706630,43.06750372,204.52,204.49,0.03]
[1757009708733,42.40750372,204.52,204.49,0.03]
[1757009708937,4.58750372,204.53,204.49,0.03]
[1757009709146,0.06,204.53,204.52,4.52750372]
[1757009709330,0.06,204.53,204.52,4.63750372]
[1757009709535,0.06,204.53,204.52,18.23309773]
[1757009709848,0.06,204.55,204.52,22.87060145]
[1757009709849,18.78,204.55,204.52,22.87060145]
[1757009710022,0.06,204.55,204.54,18.12309773]
[1757009710341,0.06,204.55,204.54,18.17309773]
[1757009711221,0.06,204.55,204.54,23.06211699]
[1757009711550,0.06,204.55,204.54,4.52750372]
[1757009712050,0.06,204.55,204.53,4.52750372]
[1757009712740,37.94,204.55,204.53,4.52750372]
[1757009713326,37.94,204.55,204.54,4.52750372]
[1757009714747,38.6,204.55,204.5,4.55750372]
[1757009715048,38.6,204.55,204.52,4.52750372]
[1757009716043,0.06,204.55,204.54,4.52750372]
[1757009716249,0.06,204.55,204.54,4.57750372]
[1757009716434,0.06,204.55,204.54,11.42629859]
[1757009716635,0.01,204.55,204.54,11.42629859]
[1757009717025,0.01,204.55,204.54,51.0218926]
[1757009717225,0.06,204.6,204.57,13.59559401]
[1757009717449,0.06,204.6,204.59,22.65060145]
[1757009717625,0.06,204.6,204.59,26.30559134]
[1757009717832,1e-08,204.62,204.61,39.59559401]
[1757009718066,1e-08,204.62,204.61,21.77808762]
[1757009718561,1e-08,204.62,204.61,26.66351709]
[1757009719551,0.06,204.68,204.64,68.65060145]
[1757009719856,0.06,204.7,204.68,39.59559401]
[1757009720059,0.06,204.7,204.69,26.79221781]
[1757009720754,0.06,204.7,204.69,33.63560728]
[1757009722258,0.06,204.7,204.69,71.08706363]
[1757009723750,0.06,204.7,204.69,33.14706363]
[1757009724128,0.06,204.7,204.69,71.08706363]
[1757009724324,0.06,204.7,204.69,72.31110518]
[1757009725035,0.06,204.7,204.69,34.37110518]
[1757009725355,0.06,204.7,204.69,72.29110518]
[1757009725554,0.06,204.7,204.69,24.9664872]
[1757009726334,0.06,204.7,204.69,15.55354697]
[1757009726566,0.74,204.7,204.69,15.55354697]
[1757009726736,0.74,204.7,204.69,1.95795296]
[1757009726931,0.06,204.7,204.69,1.95795296]
[1757009727738,0.74,204.7,204.69,1.95795296]
[1757009734868,0.74,204.7,204.66,13.59559401]
[1757009735073,0.06,204.7,204.66,13.59559401]
[1757009735273,0.68,204.69,204.68,4.88479973]
[1757009741271,0.68,204.69,204.61,0.03]
[1757009741582,0.06,204.7,204.69,13.59559401]
[1757009741881,0.06,204.7,204.69,22.65060145]
[1757009742873,0.06,204.7,204.69,26.26298739]
[1757009743069,0.06,204.7,204.69,31.1484239]
[1757009743260,0.06,204.7,204.69,26.62092018]
[1757009743473,0.06,204.7,204.69,23.00853424]
[1757009745377,0.06,204.7,204.69,24.96667889]
[1757009747669,0.06,204.7,204.69,62.90667889]
[1757009747873,0.77,204.7,204.69,62.90667889]
[1757009748071,0.77,204.7,204.69,20.08124238]
[1757009748384,0.77,204.7,204.69,1.95814465]
[1757009749496,0.77,204.7,204.69,11.37108488]
[1757009749664,0.77,204.7,204.69,1.95814465]
[1757009751365,0.06,204.7,204.69,11.37108488]
[1757009752066,0.77,204.7,204.69,11.37108488]
[1757009752669,0.77,204.7,204.69,1.95814465]
[1757009755492,0.77,204.7,204.69,6.84358116]
[1757009756293,0.77,204.7,204.69,5.58894474]
[1757009758389,0.77,204.7,204.69,13.36554647]
[1757009758587,0.06,204.7,204.69,27.45941615]
[1757009758795,0.06,204.73,204.72,39.59559401]
[1757009758973,0.06,204.73,204.72,84.49576339]
[1757009759490,0.06,204.73,204.72,86.45342888]
[1757009759700,0.06,204.73,204.72,84.49576339]
[1757009760002,0.06,204.73,204.72,89.38048398]
[1757009760385,1e-08,204.75,204.73,13.59559401]
[1757009760592,0.06,204.77,204.76,39.59559401]
[1757009760794,0.06,204.77,204.76,84.04729134]
[1757009762083,0.06,204.77,204.76,88.9310577]
[1757009763005,0.3531,204.77,204.76,88.9310577]
[1757009763701,1.0631,204.77,204.76,3.64053211]
[1757009763878,1.0631,204.77,204.76,3.65125]
[1757009764780,3.95426522,204.77,204.76,3.65125]
[1757009765101,3.95426522,204.77,204.71,21.37167178]
[1757009765307,0.71,204.76,204.72,6.54371947]
[1757009765486,3.60116522,204.75,204.73,3.65255425]
[1757009765681,2.89116522,204.75,204.74,3.65255425]
[1757009765995,2.89116522,204.75,204.74,3.6527793]
[1757009766195,3.60116522,204.75,204.7,13.59559401]
[1757009766490,0.71,204.74,204.71,3.65308496]
[1757009766801,0.71,204.73,204.72,17.24867897]
[1757009767304,0.71,204.73,204.72,3.65308496]
[1757009767606,3.60116522,204.73,204.72,3.65308496]
[1757009767977,0.71,204.73,204.72,3.65308496]
[1757009769283,0.71,204.73,204.71,0.3]
[1757009769284,3.60116522,204.73,204.71,0.3]
[1757009769796,0.3531,204.77,204.73,13.59559401]
[1757009769984,0.3531,204.77,204.75,13.59559401]
[1757009770181,0.3531,204.77,204.74,3.65371829]
[1757009770182,0.71,204.76,204.73,2.89116522]
[1757009770394,0.3531,204.77,204.75,13.59559401]
[1757009770706,0.3531,204.77,204.73,4.88448193]
[1757009770888,0.71,204.76,204.75,13.59559401]
[1757009771085,0.71,204.76,204.75,17.24872486]
[1757009771520,3.60116522,204.76,204.75,3.65313085]
[1757009771702,3.60116522,204.76,204.72,3.65313085]
[1757009771893,2.89116522,204.74,204.73,3.65313085]
[1757009772212,0.71,204.74,204.73,3.65313085]
[1757009772414,0.71,204.74,204.73,3.6531339]
[1757009773018,5.17665316,204.77,204.73,3.6531339]
[1757009773019,1.0031,204.77,204.73,6.54429912]
[1757009773216,0.71,204.76,204.74,3.6531339]
[1757009773394,0.2931,204.77,204.75,3.6531339]
[1757009773716,0.2931,204.77,204.76,3.6531339]
[1757009774107,1.0031,204.77,204.76,3.6531339]
[1757009775800,0.2931,204.77,204.76,3.6531339]
[1757009776001,1.0031,204.77,204.76,3.6531339]
[1757009776532,0.2931,204.77,204.76,3.6531339]
[1757009777024,0.2931,204.77,204.76,8.53690026]
[1757009777230,0.2931,204.77,204.76,11.42806548]
[1757009777523,0.2931,204.77,204.76,25.02365949]
[1757009778526,0.2931,204.77,204.76,63.02365949]
[1757009779330,2.89116522,204.88,204.82,2.89116522]
[1757009779535,0.68,204.85,204.83,2.89116522]
[1757009779736,136.84509869,204.97,204.76,55.09318226]
[1757009779737,0.68,204.87,204.84,2.89116522]
[1757009779939,2.89116522,204.85,204.78,38.0]
[1757009780139,11.56466088,204.9,204.78,38.0]
[1757009780140,3.57116522,204.84,204.79,17.24508982]
[1757009780360,3.57116522,204.83,204.8,3.64949581]
[1757009780662,0.68,204.82,204.79,13.59559401]
[1757009780842,0.68,204.81,204.79,13.59559401]
[1757009781154,0.68,204.8,204.78,13.59559401]
[1757009781375,0.68,204.79,204.78,13.59559401]
[1757009781580,2.89116522,204.8,204.78,17.24473814]
[1757009781730,3.57116522,204.8,204.79,3.64902488]
[1757009783343,0.68,204.8,204.79,3.64902488]
[1757009783537,4.88188096,204.84,204.79,3.64902488]
[1757009783538,30.88159075,204.86,204.79,8.53207581]
[1757009783742,2.89116522,204.83,204.79,8.53207581]
[1757009783937,3.57116522,204.82,204.79,8.53207581]
[1757009784353,3.57116522,204.82,204.79,3.64902488]
[1757009784354,2.89116522,204.81,204.79,3.64902488]
[1757009784544,3.57116522,204.82,204.8,13.59559401]
[1757009784745,0.68,204.81,204.8,13.59559401]
[1757009784945,0.68,204.81,204.78,4.88325]
[1757009785159,0.68,204.81,204.8,13.59559401]
[1757009785365,3.57116522,204.81,204.77,13.59559401]
[1757009785544,2.89116522,204.82,204.78,3.64891371]
[1757009785744,3.57116522,204.82,204.79,3.64891371]
[1757009785947,0.68,204.81,204.78,3.64891371]
[1757009786164,2.89116522,204.82,204.79,3.64891371]
[1757009786344,3.57116522,204.82,204.77,16.48675923]
[1757009786542,3.57116522,204.82,204.78,3.64930806]
[1757009786857,2.89116522,204.83,204.8,13.59559401]
[1757009787056,3.57116522,204.83,204.8,13.59559401]
[1757009787765,0.68,204.82,204.8,13.59559401]
[1757009787947,0.68,204.82,204.8,4.88278092]
[1757009788149,0.68,204.82,204.8,18.47837493]
[1757009788366,2.89116522,204.83,204.8,13.59559401]
[1757009788668,0.68,204.81,204.8,13.59559401]
[1757009791747,3.57116522,204.81,204.77,4.88348116]
[1757009791952,0.68,204.8,204.77,13.59559401]
[1757009792172,0.68,204.79,204.77,13.59559401]
[1757009792676,0.68,204.78,204.76,13.59559401]
[1757009793047,2.89116522,204.8,204.76,13.59559401]
[1757009793277,0.03,204.81,204.77,2.89116522]
[1757009793476,0.03,204.81,204.79,13.59559401]
[1757009793785,0.03,204.81,204.76,13.59559401]
[1757009793984,0.03,204.81,204.77,6.53971004]
[1757009793985,0.71,204.81,204.77,6.53971004]
[1757009794479,0.71,204.81,204.77,2.89116522]
[1757009794666,0.03,204.81,204.79,13.59559401]
[1757009795189,0.03,204.81,204.79,18.47844203]
[1757009796180,0.03,204.81,204.8,3.64940393]
[1757009796578,0.03,204.81,204.8,8.53221643]
[1757009797475,0.03,204.81,204.8,3.64940393]
[1757009798171,0.03,204.81,204.8,8.53221643]
[1757009798678,0.03,204.81,204.8,17.24499794]